fUSD/lending_fUSD_20240624
["ID","MTS","AMOUNT","RATE_DAILY","PERIOD"]
[330335521,1719260014366,-500.0,0.00045205,120]
[330335522,1719260014401,-500.0,0.00045205,120]
[330335523,1719260014434,-500.0,0.00045205,120]
[330335524,1719260014466,-3563.57,0.00045205,120]
[330335525,1719260014501,-500.0,0.00045205,120]
[330335526,1719260014535,-1837.16,0.00045205,120]
[330335527,1719260014572,-538.5,0.00045205,120]
[330335528,1719260014607,-157.75442707,0.00045205,120]
[330335529,1719260014642,-602.22,0.00045205,120]
[330335530,1719260014673,-500.0,0.00045205,120]
[330335531,1719260014704,-856.63,0.00045205,120]
[330335532,1719260014735,-5040.46,0.00045205,120]
[330335533,1719260014772,-23673.21,0.00045205,120]
[330335534,1719260014811,-500.0,0.00045205,120]
[330335535,1719260014844,-519.50008718,0.00045205,120]
[330335536,1719260014881,-500.0,0.00045205,120]
[330335537,1719260014917,-500.0,0.00045205,120]
[330335538,1719260014950,-644.86,0.00045205,120]
[330335539,1719260014982,-1194.97,0.00045205,120]
[330335540,1719260015015,-500.0,0.00045205,120]
[330335541,1719260015048,-3087.87,0.00045205,120]
[330335542,1719260015084,-500.0,0.00045205,120]
[330335543,1719260015117,-532.56,0.00045205,120]
[330335544,1719260015150,-1933.05,0.00045205,120]
[330335545,1719260015182,-1047.0,0.00045205,120]
[330335546,1719260015214,-670.97,0.00045205,120]
[330335547,1719260015246,-500.0,0.00045205,120]
[330335548,1719260015280,-500.0,0.00045205,120]
[330335549,1719260015313,-596.27,0.00045205,120]
[330335550,1719260015346,-737.47,0.00045205,120]
[330335551,1719260015378,-5601.69,0.00045205,120]
[330335552,1719260015410,-500.0,0.00045205,120]
[330335553,1719260015443,-614.1,0.00045205,120]
[330335554,1719260015475,-8648.49,0.00045205,120]
[330335555,1719260015506,-500.0,0.00045205,120]
[330335556,1719260015537,-500.0,0.00045205,120]
[330335557,1719260015573,-586.45,0.00045205,120]
[330335558,1719260015604,-737.6,0.00045205,120]
[330335559,1719260015637,-1042.6,0.00045205,120]
[330335560,1719260015671,-500.0,0.00045205,120]
[330335561,1719260015703,-4389.73,0.00045205,120]
[330335562,1719260015735,-500.0,0.00045205,120]
[330335563,1719260015770,-894.64,0.00045205,120]
[330335564,1719260015809,-917.35,0.00045205,120]
[330335565,1719260015843,-500.0,0.00045205,120]
[330335566,1719260015882,-4999.27,0.00045205,120]
[330335567,1719260015918,-735.67,0.00045205,120]
[330335568,1719260015953,-802.65,0.00045205,120]
[330335569,1719260015988,-5870.18,0.00045205,120]
[330335570,1719260016023,-500.0,0.00045205,120]
[330335571,1719260016061,-500.0,0.00045205,120]
[330335572,1719260016095,-1829.02,0.00045205,120]
[330335573,1719260016128,-699.19,0.00045205,120]
[330335574,1719260016160,-575.29,0.00045205,120]
[330335575,1719260016191,-1043.77,0.00045205,120]
[330335576,1719260016287,-4403.67,0.00045205,120]
[330335577,1719260016323,-500.0,0.00045205,120]
[330335578,1719260016356,-763.06,0.00045205,120]
[330335579,1719260016388,-2713.4,0.00045205,120]
[330335580,1719260016424,-709.9,0.00045205,120]
[330335581,1719260016456,-576.1,0.00045205,120]
[330335582,1719260016488,-500.0,0.00045205,120]
[330335583,1719260016519,-500.0,0.00045205,120]
[330335584,1719260016554,-500.0,0.00045205,120]
[330335585,1719260016584,-8968.63,0.00045205,120]
[330335586,1719260016616,-500.0,0.00045205,120]
[330335587,1719260016647,-500.0,0.00045205,120]
[330335588,1719260016679,-37021.68,0.00045205,120]
[330335589,1719260016711,-500.0,0.00045205,120]
[330335590,1719260016744,-500.0,0.00045205,120]
[330335591,1719260016778,-1097.53,0.00045205,120]
[330335592,1719260016810,-11437.04,0.00045205,120]
[330335593,1719260016841,-1463.6,0.00045205,120]
[330335594,1719260016875,-3647.56,0.00045205,120]
[330335595,1719260016908,-595.67,0.00045205,120]
[330335596,1719260016941,-916.02,0.00045205,120]
[330335597,1719260016974,-542.12,0.00045205,120]
[330335598,1719260017006,-500.0,0.00045205,120]
[330335599,1719260017039,-620.17,0.00045205,120]
[330335600,1719260017072,-500.0,0.00045205,120]
[330335601,1719260017106,-500.0,0.00045205,120]
[330335602,1719260017140,-4191.77,0.00045205,120]
[330335603,1719260017171,-858.98,0.00045205,120]
[330335604,1719260017202,-5835.72,0.00045205,120]
[330335605,1719260017234,-500.0,0.00045205,120]
[330335606,1719260017268,-810.48,0.00045205,120]
[330335607,1719260017302,-500.0,0.00045205,120]
[330335608,1719260017332,-2482.97,0.00045205,120]
[330335609,1719260017367,-3897.28,0.00045205,120]
[330335610,1719260017397,-12695.45,0.00045205,120]
[330335611,1719260017428,-3195.73,0.00045205,120]
[330335612,1719260017458,-1253.06,0.00045205,120]
[330335613,1719260017488,-787.95,0.00045205,120]
[330335614,1719260017519,-500.0,0.00045205,120]
[330335615,1719260017549,-500.0,0.00045205,120]
[330335616,1719260017582,-1110.19,0.00045205,120]
[330335617,1719260017613,-2463.45,0.00045205,120]
[330335618,1719260017645,-582.47,0.00045205,120]
[330335619,1719260017675,-500.0,0.00045205,120]
[330335620,1719260017707,-500.0,0.00045205,120]
[330335621,1719260017741,-2645.84,0.00045205,120]
[330335622,1719260017774,-527.31,0.00045205,120]
[330335623,1719260017808,-1350.97,0.00045205,120]
[330335624,1719260017841,-18423.38,0.00045205,120]
[330335625,1719260017874,-5666.44,0.00045205,120]
[330335626,1719260017907,-848.7,0.00045205,120]
[330335627,1719260017945,-500.0,0.00045205,120]
[330335628,1719260017979,-835.24,0.00045205,120]
[330335629,1719260018012,-889.34,0.00045205,120]
[330335630,1719260018044,-981.02,0.00045205,120]
[330335631,1719260018083,-500.0,0.00045205,120]
[330335632,1719260018119,-2138.52,0.00045205,120]
[330335633,1719260018152,-1100.43,0.00045205,120]
[330335634,1719260018184,-500.0,0.00045205,120]
[330335635,1719260018217,-5817.01,0.00045205,120]
[330335636,1719260018269,-10100.83,0.00045205,120]
[330335637,1719260018307,-6028.84,0.00045205,120]
[330335638,1719260018340,-500.0,0.00045205,120]
[330335639,1719260018371,-1418.66,0.00045205,120]
[330335640,1719260018401,-500.0,0.00045205,120]
[330335641,1719260018432,-500.0,0.00045205,120]
[330335642,1719260018463,-944.54,0.00045205,120]
[330335643,1719260018493,-714.06,0.00045205,120]
[330335644,1719260018524,-2075.84,0.00045205,120]
[330335645,1719260018557,-500.0,0.00045205,120]
[330335646,1719260018589,-542.47,0.00045205,120]
[330335647,1719260018620,-8060.15,0.00045205,120]
[330335648,1719260018652,-4256.03,0.00045205,120]
[330335649,1719260018684,-500.0,0.00045205,120]
[330335650,1719260018718,-500.0,0.00045205,120]
[330335651,1719260018750,-500.0,0.00045205,120]
[330335652,1719260018782,-19208.55,0.00045205,120]
[330335653,1719260018813,-925.69,0.00045205,120]
[330335654,1719260018844,-500.0,0.00045205,120]
[330335655,1719260018875,-1147.16,0.00045205,120]
[330335656,1719260018907,-6982.45,0.00045205,120]
[330335657,1719260018940,-10183.11,0.00045205,120]
[330335658,1719260018973,-991.86,0.00045205,120]
[330335659,1719260019010,-1030.42,0.00045205,120]
[330335660,1719260019061,-500.0,0.00045205,120]
[330335661,1719260019099,-649.66,0.00045205,120]
[330335662,1719260019136,-500.0,0.00045205,120]
[330335663,1719260019171,-500.0,0.00045205,120]
[330335664,1719260019204,-500.0,0.00045205,120]
[330335665,1719260019244,-2501.12,0.00045205,120]
[330335666,1719260019279,-500.0,0.00045205,120]
[330335667,1719260019314,-1122.09,0.00045205,120]
[330335668,1719260019348,-9861.82,0.00045205,120]
[330335669,1719260019385,-1155.29,0.00045205,120]
[330335670,1719260019419,-516.15778722,0.00045205,120]
[330335671,1719260019452,-1621.76,0.00045205,120]
[330335672,1719260019486,-7935.13,0.00045205,120]
[330335673,1719260019520,-915.96,0.00045205,120]
[330335674,1719260019559,-807.12,0.00045205,120]
[330335675,1719260019592,-9195.57,0.00045205,120]
[330335676,1719260019626,-14297.31,0.00045205,120]
[330335677,1719260019659,-732.98,0.00045205,120]
[330335678,1719260019693,-500.0,0.00045205,120]
[330335679,1719260019725,-1329.06,0.00045205,120]
[330335680,1719260019886,-524.8,0.00045205,120]
[330335681,1719260019920,-500.0,0.00045205,120]
[330335682,1719260019954,-2185.64,0.00045205,120]
[330335683,1719260019988,-840.34,0.00045205,120]
[330335684,1719260020021,-11351.76,0.00045205,120]
[330335685,1719260020058,-500.0,0.00045205,120]
[330335686,1719260020092,-500.0,0.00045205,120]
[330335687,1719260020127,-1271.86,0.00045205,120]
[330335688,1719260020162,-7533.65,0.00045205,120]
[330335689,1719260020201,-500.0,0.00045205,120]
[330335690,1719260020240,-1000.0,0.00045205,120]
[330335691,1719260020276,-2900.5,0.00045205,120]
[330335692,1719260020310,-500.0,0.00045205,120]
[330335693,1719260020347,-4269.23,0.00045205,120]
[330335694,1719260020382,-13424.13,0.00045205,120]
[330335695,1719260020417,-1920.89,0.00045205,120]
[330335696,1719260020452,-824.87,0.00045205,120]
[330335697,1719260020484,-3710.53,0.00045205,120]
[330335698,1719260020518,-767.16,0.00045205,120]
[330335699,1719260020554,-1075.52,0.00045205,120]
[330335700,1719260020588,-1119.02,0.00045205,120]
[330335701,1719260020624,-1555.22,0.00045205,120]
[330335702,1719260020661,-2902.92,0.00045205,120]
[330335703,1719260020696,-500.0,0.00045205,120]
[330335704,1719260020734,-18200.0,0.00045205,120]
[330335705,1719260020772,-1325.58,0.00045205,120]
[330335706,1719260020808,-850.77,0.00045205,120]
[330335707,1719260020843,-500.0,0.00045205,120]
[330335708,1719260020876,-500.0,0.00045205,120]
[330335709,1719260020910,-5694.63,0.00045205,120]
[330335710,1719260020944,-500.0,0.00045205,120]
[330335711,1719260020979,-620.82,0.00045205,120]
[330335712,1719260021014,-500.0,0.00045205,120]
[330335713,1719260021047,-4418.13,0.00045205,120]
[330335714,1719260021081,-1578.28,0.00045205,120]
[330335715,1719260021115,-1538.01,0.00045205,120]
[330335716,1719260021149,-1018.73,0.00045205,120]
[330335717,1719260021182,-728.27,0.00045205,120]
[330335718,1719260021214,-586.2,0.00045205,120]
[330335719,1719260021248,-810.3,0.00045205,120]
[330335720,1719260021284,-10357.37,0.00045205,120]
[330335721,1719260021321,-22020.78,0.00045205,120]
[330335722,1719260021357,-500.0,0.00045205,120]
[330335723,1719260021390,-841.42,0.00045205,120]
[330335724,1719260021424,-13153.35,0.00045205,120]
[330335725,1719260021456,-1133.73,0.00045205,120]
[330335726,1719260021489,-500.0,0.00045205,120]
[330335727,1719260021522,-574.57,0.00045205,120]
[330335728,1719260021557,-500.0,0.00045205,120]
[330335729,1719260021591,-946.56,0.00045205,120]
[330335730,1719260021624,-179.12722122,0.00045205,120]
[330335731,1719260021657,-7092.86,0.00045205,120]
[330335732,1719260021691,-2001.06,0.00045205,120]
[330335733,1719260021724,-1907.57,0.00045205,120]
[330335734,1719260021758,-813.3,0.00045205,120]
[330335735,1719260021792,-500.0,0.00045205,120]
[330335736,1719260021830,-500.0,0.00045205,120]
[330335737,1719260021864,-500.0,0.00045205,120]
[330335738,1719260021897,-500.0,0.00045205,120]
[330335739,1719260021930,-15434.26,0.00045205,120]
[330335740,1719260021963,-2393.22,0.00045205,120]
[330335741,1719260021997,-6288.36,0.00045205,120]
[330335742,1719260022030,-703.59,0.00045205,120]
[330335743,1719260022064,-608.52,0.00045205,120]
[330335744,1719260022097,-500.0,0.00045205,120]
[330335745,1719260022132,-21281.56,0.00045205,120]
[330335746,1719260022164,-500.0,0.00045205,120]
[330335747,1719260022198,-802.93,0.00045205,120]
[330335748,1719260022235,-21693.08,0.00045205,120]
[330335749,1719260022268,-500.0,0.00045205,120]
[330335750,1719260022305,-1268.88,0.00045205,120]
[330335751,1719260022345,-12227.58,0.00045205,120]
[330335752,1719260022379,-500.0,0.00045205,120]
[330335753,1719260022411,-500.0,0.00045205,120]
[330335754,1719260022443,-6762.38,0.00045205,120]
[330335755,1719260022475,-500.0,0.00045205,120]
[330335756,1719260022509,-683.34,0.00045205,120]
[330335757,1719260022542,-1642.01,0.00045205,120]
[330335758,1719260022576,-500.0,0.00045205,120]
[330335759,1719260022607,-626.91,0.00045205,120]
[330335760,1719260022640,-2891.95,0.00045205,120]
[330335761,1719260022671,-500.0,0.00045205,120]
[330335762,1719260022703,-2540.59,0.00045205,120]
[330335763,1719260022734,-1382.04,0.00045205,120]
[330335764,1719260022769,-3700.38,0.00045205,120]
[330335765,1719260022801,-545.09,0.00045205,120]
[330335766,1719260022835,-2045.13,0.00045205,120]
[330335767,1719260023140,-989.24,0.00045205,120]
[330335768,1719260023174,-307.30339456,0.00045205,120]
[330335769,1719260023207,-500.0,0.00045205,120]
[330335770,1719260023239,-654.77,0.00045479,120]
[330335771,1719260023275,-1774.83,0.00045479,120]
[330335772,1719260023309,-500.0,0.00045479,120]
[330335773,1719260023342,-500.0,0.00045479,120]
[330335774,1719260023374,-500.0,0.00045479,120]
[330335775,1719260023406,-500.0,0.00045479,120]
[330335776,1719260023439,-800.44,0.00045479,120]
[330335777,1719260023472,-500.0,0.00045479,120]
[330335778,1719260023506,-500.0,0.00045479,120]
[330335779,1719260023540,-500.0,0.00045479,120]
[330335780,1719260023578,-500.0,0.00045479,120]
[330335781,1719260023611,-500.0,0.00045479,120]
[330335782,1719260023644,-635.21,0.00045479,120]
[330335783,1719260023677,-500.0,0.00045479,120]
[330335784,1719260023708,-1258.6,0.00045479,120]
[330335785,1719260023742,-500.0,0.00045479,120]
[330335786,1719260023776,-500.0,0.00045479,120]
[330335787,1719260023812,-1180.71,0.00045479,120]
[330335788,1719260023844,-1629.26,0.00045479,120]
[330335789,1719260023876,-500.0,0.00045479,120]
[330335790,1719260023908,-1505.86,0.00045479,120]
[330335791,1719260023943,-500.0,0.00045479,120]
[330335792,1719260023979,-500.0,0.00045479,120]
[330335793,1719260024013,-500.0,0.00045479,120]
[330335794,1719260024048,-500.0,0.00045479,120]
[330335795,1719260024088,-1217.5,0.00045479,120]
[330335796,1719260024124,-500.0,0.00045479,120]
[330335797,1719260024160,-500.0,0.00045479,120]
[330335798,1719260024193,-500.0,0.00045479,120]
[330335799,1719260024230,-500.0,0.00045479,120]
[330335800,1719260024271,-549.91,0.00045479,120]
[330335801,1719260024308,-500.0,0.00045479,120]
[330335802,1719260024347,-500.0,0.00045479,120]
[330335803,1719260024381,-519.19,0.00045479,120]
[330335804,1719260024415,-500.0,0.00045479,120]
[330335805,1719260024453,-500.0,0.00045479,120]
[330335806,1719260024492,-500.0,0.00045479,120]
[330335807,1719260024526,-500.0,0.00045479,120]
[330335808,1719260024563,-500.0,0.00045479,120]
[330335809,1719260024596,-500.0,0.00045479,120]
[330335810,1719260024630,-500.0,0.00045479,120]
[330335811,1719260024664,-500.0,0.00045479,120]
[330335812,1719260024698,-507.14,0.00045479,120]
[330335813,1719260024731,-735.56,0.00045479,120]
[330335814,1719260024767,-500.0,0.00045479,120]
[330335815,1719260024802,-500.0,0.00045479,120]
[330335816,1719260024840,-500.0,0.00045479,120]
[330335817,1719260024877,-500.0,0.00045479,120]
[330335818,1719260024912,-500.0,0.00045479,120]
[330335819,1719260024948,-670.34,0.00045479,120]
[330335820,1719260024981,-333.42682479,0.00045479,120]
[330335821,1719260025015,-500.0,0.00045479,120]
[330335822,1719260025048,-500.0,0.00045479,120]
[330335823,1719260025086,-500.0,0.00045479,120]
[330335824,1719260025121,-500.0,0.00045479,120]
[330335825,1719260025160,-500.0,0.00045479,120]
[330335826,1719260025194,-500.0,0.00045479,120]
[330335827,1719260025232,-500.0,0.00045479,120]
[330335828,1719260025266,-500.0,0.00045479,120]
[330335829,1719260025300,-2624.07,0.00045479,120]
[330335830,1719260025336,-500.0,0.00045479,120]
[330335831,1719260025370,-500.0,0.00045479,120]
[330335832,1719260025406,-631.34,0.00045479,120]
[330335833,1719260025442,-500.0,0.00045479,120]
[330335834,1719260025476,-500.0,0.00045479,120]
[330335835,1719260025509,-500.0,0.00045479,120]
[330335836,1719260025544,-546.62,0.00045479,120]
[330335837,1719260025579,-500.0,0.00045479,120]
[330335838,1719260025684,-500.0,0.00045479,120]
[330335839,1719260025720,-1775.35,0.00045479,120]
[330335840,1719260025754,-500.0,0.00045479,120]
[330335841,1719260025788,-500.0,0.00045479,120]
[330335842,1719260025820,-511.61,0.00045479,120]
[330335843,1719260025854,-500.0,0.00045479,120]
[330335844,1719260025887,-500.0,0.00045479,120]
[330335845,1719260025921,-500.0,0.00045479,120]
[330335846,1719260025954,-500.0,0.00045479,120]
[330335847,1719260025987,-500.0,0.00045479,120]
[330335848,1719260026020,-500.0,0.00045479,120]
[330335849,1719260026053,-500.0,0.00045479,120]
[330335850,1719260026086,-500.0,0.00045479,120]
[330335851,1719260026118,-500.0,0.00045479,120]
[330335852,1719260026149,-500.0,0.00045479,120]
[330335853,1719260026182,-500.0,0.00045479,120]
[330335854,1719260026215,-500.0,0.00045479,120]
[330335855,1719260026256,-597.75,0.00045479,120]
[330335856,1719260026287,-1005.97,0.00045479,120]
[330335857,1719260026318,-500.0,0.00045479,120]
[330335858,1719260026350,-500.0,0.00045479,120]
[330335859,1719260026381,-500.0,0.00045479,120]
[330335860,1719260026412,-1347.71,0.00045479,120]
[330335861,1719260026444,-500.0,0.00045479,120]
[330335862,1719260026475,-500.0,0.00045479,120]
[330335863,1719260026506,-500.0,0.00045479,120]
[330335864,1719260026537,-1324.15,0.00045479,120]
[330335865,1719260026568,-500.0,0.00045479,120]
[330335866,1719260026600,-500.0,0.00045479,120]
[330335867,1719260026631,-500.0,0.00045479,120]
[330335868,1719260026664,-1114.56,0.00045479,120]
[330335869,1719260026695,-1178.02,0.00045479,120]
[330335870,1719260026727,-530.26,0.00045479,120]
[330335871,1719260026760,-1446.6,0.00045479,120]
[330335872,1719260026795,-1169.0,0.00045479,120]
[330335873,1719260026829,-583.04,0.00045479,120]
[330335874,1719260026863,-500.0,0.00045479,120]
[330335875,1719260026898,-515.63,0.00045479,120]
[330335876,1719260026936,-1209.35,0.00045479,120]
[330335877,1719260026975,-500.0,0.00045479,120]
[330335878,1719260027012,-500.0,0.00045479,120]
[330335879,1719260027052,-1790.19,0.00045479,120]
[330335880,1719260027101,-926.47,0.00045479,120]
[330335881,1719260027135,-500.0,0.00045479,120]
[330335882,1719260027173,-1157.48,0.00045479,120]
[330335883,1719260027215,-909.18,0.00045479,120]
[330335884,1719260027260,-500.0,0.00045479,120]
[330335885,1719260027298,-500.0,0.00045479,120]
[330335886,1719260027340,-500.0,0.00045479,120]
[330335887,1719260027378,-500.0,0.00045479,120]
[330335888,1719260027416,-500.0,0.00045479,120]
[330335889,1719260027454,-1019.92,0.00045479,120]
[330335890,1719260027491,-1456.15,0.00045479,120]
[330335891,1719260027530,-500.0,0.00045479,120]
[330335892,1719260027567,-500.0,0.00045479,120]
[330335893,1719260027602,-558.0,0.00045479,120]
[330335894,1719260027637,-1340.93,0.00045479,120]
[330335895,1719260027671,-1483.76,0.00045479,120]
[330335896,1719260027706,-500.0,0.00045479,120]
[330335897,1719260027740,-1394.02,0.00045479,120]
[330335898,1719260027776,-500.0,0.00045479,120]
[330335899,1719260027812,-2916.72,0.00045479,120]
[330335900,1719260027849,-500.0,0.00045479,120]
[330335901,1719260027884,-754.89,0.00045479,120]
[330335902,1719260027918,-1121.72,0.00045479,120]
[330335903,1719260027953,-1051.18,0.00045479,120]
[330335904,1719260027987,-500.0,0.00045479,120]
[330335905,1719260028021,-510.79,0.00045479,120]
[330335906,1719260028054,-158.49196822,0.00045479,120]
[330335907,1719260028092,-959.29,0.00045479,120]
[330335908,1719260028125,-317.72,0.00045479,120]
[330335909,1719260028159,-500.0,0.00045479,120]
[330335910,1719260028192,-795.08,0.00045479,120]
[330335911,1719260028225,-777.45,0.00045479,120]
[330335912,1719260028264,-500.0,0.00045479,120]
[330335913,1719260028305,-500.0,0.00045479,120]
[330335914,1719260028347,-500.0,0.00045479,120]
[330335915,1719260028380,-1335.72,0.00045479,120]
[330335916,1719260028414,-849.22,0.00045479,120]
[330335917,1719260028449,-500.0,0.00045479,120]
[330335918,1719260028481,-590.13,0.00045479,120]
[330335919,1719260028513,-500.0,0.00045479,120]
[330335920,1719260028546,-544.6,0.00045479,120]
[330335921,1719260028580,-500.0,0.00045479,120]
[330335922,1719260028612,-500.0,0.00045479,120]
[330335923,1719260028645,-610.13,0.00045479,120]
[330335924,1719260028683,-847.06,0.00045479,120]
[330335925,1719260028716,-519.7,0.00045479,120]
[330335926,1719260028751,-500.0,0.00045479,120]
[330335927,1719260028784,-830.14,0.00045479,120]
[330335928,1719260028817,-500.0,0.00045479,120]
[330335929,1719260028851,-236.13139516,0.00045479,120]
[330335930,1719260028885,-597.83,0.00045479,120]
[330335931,1719260028919,-984.9,0.00045479,120]
[330335932,1719260028954,-854.45,0.00045479,120]
[330335933,1719260028988,-257.90428982,0.00045479,120]
[330335934,1719260029024,-500.0,0.00045479,120]
[330335935,1719260029068,-582.55,0.00045479,120]
[330335936,1719260029104,-881.36,0.00045479,120]
[330335937,1719260029139,-500.0,0.00045479,120]
[330335938,1719260029175,-500.0,0.00045479,120]
[330335939,1719260029211,-586.13,0.00045479,120]
[330335940,1719260029246,-514.86240802,0.00045479,120]
[330335941,1719260029282,-500.0,0.00045479,120]
[330335942,1719260029319,-500.0,0.00045479,120]
[330335943,1719260029517,-500.0,0.00045479,120]
[330335944,1719260029575,-1846.98,0.00045479,120]
[330335945,1719260029632,-500.0,0.00045479,120]
[330335946,1719260029692,-534.28,0.00045479,120]
[330335947,1719260029751,-164.66723459,0.00045479,120]
[330335948,1719260029814,-500.0,0.00045479,120]
[330335949,1719260029872,-575.79,0.00045479,120]
[330335950,1719260029931,-500.0,0.00045479,120]
[330335951,1719260029990,-500.0,0.00045479,120]
[330335952,1719260030046,-500.0,0.00045479,120]
[330335953,1719260030107,-606.31,0.00045479,120]
[330335954,1719260030166,-1765.11,0.00045479,120]
[330335955,1719260030224,-758.39,0.00045479,120]
[330335956,1719260030283,-500.0,0.00045479,120]
[330335957,1719260030349,-781.35,0.00045479,120]
[330335958,1719260030417,-500.0,0.00045479,120]
[330335959,1719260030482,-500.0,0.00045479,120]
[330335960,1719260030542,-500.0,0.00045479,120]
[330335961,1719260030600,-500.0,0.00045479,120]
[330335962,1719260030659,-500.0,0.00045479,120]
[330335963,1719260030720,-500.0,0.00045479,120]
[330335964,1719260030778,-500.0,0.00045479,120]
[330335965,1719260030839,-1285.4,0.00045479,120]
[330335966,1719260030902,-584.28,0.00045479,120]
[330335967,1719260030961,-536.44,0.00045479,120]
[330335968,1719260031023,-1045.9,0.00045479,120]
[330335969,1719260031081,-500.0,0.00045479,120]
[330335970,1719260031137,-500.0,0.00045479,120]
[330335971,1719260031193,-1222.63,0.00045479,120]
[330335972,1719260031251,-500.0,0.00045479,120]
[330335973,1719260031312,-500.0,0.00045479,120]
[330335974,1719260031370,-525.7,0.00045479,120]
[330335975,1719260031428,-990.75,0.00045479,120]
[330335976,1719260031491,-1218.13,0.00045479,120]
[330335977,1719260031547,-500.0,0.00045479,120]
[330335978,1719260031612,-500.0,0.00045479,120]
[330335979,1719260031674,-543.99,0.00045479,120]
[330335980,1719260031733,-500.0,0.00045479,120]
[330335981,1719260031792,-500.0,0.00045479,120]
[330335982,1719260031853,-500.0,0.00045479,120]
[330335983,1719260031910,-584.08,0.00045479,120]
[330335984,1719260031970,-500.0,0.00045479,120]
[330335985,1719260032031,-500.0,0.00045479,120]
[330335986,1719260032090,-653.68,0.00045479,120]
[330335987,1719260032147,-500.0,0.00045479,120]
[330335988,1719260032203,-500.0,0.00045479,120]
[330335989,1719260032258,-500.0,0.00045479,120]
[330335990,1719260032315,-500.0,0.00045479,120]
[330335991,1719260032375,-500.0,0.00045479,120]
[330335992,1719260032434,-827.16,0.00045479,120]
[330335993,1719260032490,-1472.2,0.00045479,120]
[330335994,1719260032549,-500.0,0.00045479,120]
[330335995,1719260032613,-1303.49,0.00045479,120]
[330335996,1719260032670,-500.0,0.00045479,120]
[330335997,1719260032727,-468.70445259,0.00045479,120]
[330335998,1719260032790,-500.0,0.00045479,120]
[330335999,1719260032854,-500.0,0.00045479,120]
[330336000,1719260032911,-500.0,0.00045479,120]
[330336001,1719260032969,-781.46,0.00045479,120]
[330336002,1719260033028,-500.0,0.00045479,120]
[330336003,1719260033084,-500.0,0.00045479,120]
[330336004,1719260033161,-989.36,0.00045479,120]
[330336005,1719260033220,-2014.73,0.00045479,120]
[330336006,1719260033283,-996.46,0.00045479,120]
[330336007,1719260033344,-500.0,0.00045479,120]
[330336008,1719260033404,-500.0,0.00045479,120]
[330336009,1719260033465,-251.33611046,0.00045479,120]
[330336010,1719260033530,-500.0,0.00045479,120]
[330336011,1719260033598,-569.1,0.00045479,120]
[330336012,1719260033665,-1200.09,0.00045479,120]
[330336013,1719260033726,-500.0,0.00045479,120]
[330336014,1719260033786,-685.64,0.00045479,120]
[330336015,1719260033847,-500.0,0.00045479,120]
[330336016,1719260033906,-500.0,0.00045479,120]
[330336017,1719260033971,-1065.13,0.00045479,120]
[330336018,1719260034048,-500.0,0.00045479,120]
[330336019,1719260034119,-678.86,0.00045479,120]
[330336020,1719260034181,-513.9,0.00045479,120]